bitfinex-derivatives/quotes_SOLF0:USTF0_20250207
["timestamp","ask_amount","ask_price","bid_price","bid_amount"]
[1738949664141,36.88340534,195.62,195.56,0.03279482]
[1738949664342,0.92936911,195.61,195.56,0.03279482]
[1738949664543,36.88340534,195.62,195.56,0.03279482]
[1738949664847,0.92930789,195.61,195.56,0.03279482]
[1738949665144,36.88340534,195.59,195.48,2.5721]
[1738949665337,36.88340534,195.56,195.44,1.7864]
[1738949665536,36.88340534,195.56,195.45,5.1138]
[1738949665742,36.88340534,195.56,195.44,1.7864]
[1738949666244,0.03757791,195.52,195.48,0.03794804]
[1738949666844,5.1125,195.51,195.48,0.03794804]
[1738949667345,5.113,195.49,195.48,0.03794804]
[1738949667942,5.113,195.49,195.48,4.804e-05]
[1738949668644,0.9288587,195.49,195.36,1.8674]
[1738949668958,9.614,195.51,195.36,1.8674]
[1738949668959,5.115,195.42,195.36,1.8674]
[1738949669452,5.1145,195.44,195.36,1.8674]
[1738949669654,0.03715152,195.41,195.37,0.0354343]
[1738949670753,5.1156,195.39,195.37,0.0354343]
[1738949671749,41.38340534,195.38,195.28,4.5613]
[1738949671947,41.38340534,195.38,195.27,97.35279079]
[1738949672151,41.99740534,195.34,195.23,2.6296]
[1738949672452,36.88340534,195.34,195.23,2.6296]
[1738949672851,0.9276878,195.33,195.23,2.6296]
[1738949673048,0.9276878,195.33,195.27,0.03788789]
[1738949673049,5.15332739,195.3,195.27,0.03788789]
[1738949673252,0.03512739,195.3,195.27,0.03788789]
[1738949674051,5.1185,195.28,195.27,0.03788789]
[1738949674554,0.03512739,195.3,195.27,0.03788789]
[1738949676655,5.1165,195.36,195.27,5.15638789]
[1738949676955,4.5,195.43,195.29,36.88340534]
[1738949677156,4.5,195.43,195.29,134.23619613]
[1738949677352,4.5,195.43,195.35,5.1165]
[1738949677854,4.5,195.43,195.29,134.23619613]
[1738949678056,0.0361421,195.41,195.37,0.03369606]
[1738949678752,134.76985648,195.46,195.37,0.03369606]
[1738949678952,36.88340534,195.5,195.37,0.03369606]
[1738949678953,41.38340534,195.5,195.37,0.03369606]
[1738949679353,5.113,195.49,195.33,134.23619613]
[1738949679554,41.38340534,195.5,195.33,134.23619613]
[1738949679759,36.88340534,195.47,195.33,97.35279079]
[1738949680057,0.0360655,195.43,195.4,0.03926167]
[1738949680853,36.91947084,195.43,195.4,0.03926167]
[1738949681062,5.1161,195.38,195.33,97.35279079]
[1738949681254,5.1161,195.38,195.29,5.118]
[1738949681454,36.88340534,195.4,195.28,4.3524]
[1738949681656,5.1162,195.37,195.28,9.4707]
[1738949681858,36.88340534,195.4,195.28,4.3524]
[1738949682257,0.03705449,195.36,195.32,0.03259655]
[1738949682559,36.88340534,195.48,195.29,36.88340534]
[1738949682761,5.1143,195.44,195.36,5.1164]
[1738949683060,36.88340534,195.48,195.32,36.88340534]
[1738949683262,0.9277642,195.47,195.32,36.88340534]
[1738949683561,36.88340534,195.48,195.32,36.88340534]
[1738949683760,0.03568194,195.41,195.38,5.15483648]
[1738949683962,9.6136,195.47,195.39,2.6644]
[1738949684161,0.03493522,195.41,195.39,2.6644]
[1738949684461,5.1127,195.51,195.42,5.1147]
[1738949684765,5.1127,195.51,195.39,2.6644]
[1738949684766,4.5,195.53,195.39,2.6644]
[1738949685457,4.5,195.53,195.44,0.03446459]
[1738949685659,5.1125,195.51,195.44,0.03446459]
[1738949685863,36.88340534,195.55,195.44,0.03446459]
[1738949686162,4.5,195.54,195.44,0.03446459]
[1738949686463,5.112,195.53,195.45,5.114]
[1738949687363,24.16487339,195.66,195.44,0.03446459]
[1738949687664,4.5,195.63,195.46,36.88340534]
[1738949687866,0.92853545,195.62,195.5,0.03622083]
[1738949688166,0.92853545,195.62,195.47,3.7968]
[1738949688662,4.5,195.63,195.54,0.03597605]
[1738949689266,5.1099,195.61,195.54,0.03597605]
[1738949689667,36.88340534,195.64,195.54,0.03597605]
[1738949689858,41.38340534,195.64,195.54,0.03597605]
[1738949690761,5.1107,195.58,195.54,0.03597605]
[1738949690965,36.88340534,195.61,195.54,0.03597605]
[1738949691467,41.38340534,195.64,195.54,0.03597605]
[1738949692158,0.92769605,195.63,195.54,0.03597605]
[1738949692766,36.88340534,195.61,195.54,0.03597605]
[1738949693666,5.1112,195.56,195.54,0.03597605]
[1738949694165,5.1114,195.55,195.54,0.03597605]
[1738949694964,36.88340534,195.58,195.54,0.03597605]
[1738949695169,5.1111,195.57,195.54,0.03597605]
[1738949695369,36.88340534,195.61,195.54,0.03597605]
[1738949696071,5.1107,195.58,195.54,0.03597605]
[1738949696276,36.88340534,195.61,195.54,0.03597605]
[1738949696571,5.1106,195.59,195.54,0.03597605]
[1738949696771,36.88340534,195.61,195.54,0.03597605]
[1738949696972,0.92712923,195.6,195.54,0.03597605]
[1738949697171,5.1112,195.57,195.54,0.03597605]
[1738949697373,36.88340534,195.61,195.54,0.03597605]
[1738949697570,0.92714463,195.6,195.54,0.03597605]
[1738949698072,5.111,195.57,195.54,0.03597605]
[1738949698272,36.88340534,195.61,195.54,0.03597605]
[1738949699579,5.1114,195.55,195.54,0.03597605]
[1738949699872,36.88340534,195.61,195.54,0.03597605]
[1738949700171,0.92656228,195.6,195.54,0.03597605]
[1738949700672,22.58986761,195.65,195.54,0.03597605]
[1738949700873,50.99402453,195.69,195.54,97.35279079]
[1738949701071,5.1084,195.67,195.6,5.11]
[1738949701374,5.1084,195.67,195.55,2.4615]
[1738949701375,4.5,195.69,195.56,1.8681]
[1738949701570,0.92643068,195.68,195.56,1.8681]
[1738949701767,0.92643068,195.68,195.62,0.03860634]
[1738949702171,5.1089,195.65,195.62,0.03860634]
[1738949702372,4.5,195.69,195.62,0.03860634]
[1738949702573,0.92629197,195.68,195.62,0.03860634]
[1738949702774,41.1955753,195.69,195.62,0.03860634]
[1738949702967,0.9267912,195.68,195.62,0.03860634]
[1738949703174,36.6955753,195.66,195.62,0.03860634]
[1738949703373,5.1093,195.63,195.62,0.03860634]
[1738949705177,5.1093,195.63,195.62,6.34e-06]
[1738949706276,6.03620884,195.63,195.62,6.34e-06]
[1738949707076,5.1093,195.63,195.62,6.34e-06]
[1738949707276,0.03591034,195.64,195.62,6.34e-06]
[1738949708878,4.5,195.72,195.62,6.34e-06]
[1738949709077,36.6955753,195.74,195.57,36.6955753]
[1738949709280,36.6955753,195.74,195.57,134.04836609]
[1738949709579,4.5,195.79,195.63,36.6955753]
[1738949709781,6.03284293,195.78,195.64,1.793]
[1738949709977,80.86191388,195.8,195.66,36.6955753]
[1738949710177,80.86191388,195.8,195.69,36.73240344]
[1738949710479,80.86191388,195.8,195.72,36.6955753]
[1738949710670,68.22671388,195.8,195.78,5.1054]
[1738949710872,5.1042,195.83,195.73,1.793]
[1738949711076,36.6955753,195.89,195.73,1.793]
[1738949711277,0.92725,195.88,195.74,5.1064]
[1738949711480,5.1041,195.83,195.76,0.03754223]
[1738949711877,36.6955753,195.86,195.73,1.793]
[1738949712077,36.6955753,195.8,195.78,3.785e-05]
[1738949712581,6.031667,195.79,195.78,3.785e-05]
[1738949712783,1.7988,195.79,195.6,134.04836609]
[1738949712985,36.6955753,195.76,195.6,134.04836609]
[1738949713383,36.6955753,195.76,195.62,5.1094]
[1738949713683,36.6955753,195.76,195.6,97.35279079]
[1738949713885,0.92665845,195.75,195.6,97.35279079]
[1738949714179,0.03753679,195.7,195.66,0.03379995]
[1738949714884,5.14503679,195.7,195.66,0.03379995]
[1738949715080,0.03753679,195.7,195.66,0.03379995]
[1738949715684,0.03753679,195.7,195.66,5.14229995]
[1738949716078,1.7988,195.79,195.66,0.03379995]
[1738949716278,1.7988,195.79,195.7,5.1075]
[1738949716480,1.7988,195.79,195.67,36.6955753]
[1738949716679,4.48,195.8,195.67,36.6955753]
[1738949716885,4.48,195.83,195.67,36.6955753]
[1738949717186,0.92747835,195.82,195.67,36.6955753]
[1738949717384,0.92747835,195.82,195.73,0.03935127]
[1738949717882,4.48,195.83,195.73,0.03935127]
[1738949718386,5.1046,195.82,195.73,0.03935127]
[1738949718580,5.1046,195.82,195.73,2.58745127]
[1738949719086,36.6955753,195.82,195.73,2.58745127]
[1738949720284,36.6955753,195.82,195.73,0.03935127]
[1738949720483,36.6955753,195.78,195.73,0.03935127]
[1738949721084,36.6955753,195.82,195.73,0.03935127]
[1738949721286,0.92945913,195.81,195.73,0.03935127]
[1738949721682,36.6955753,195.82,195.73,0.03935127]
[1738949721887,4.48,195.83,195.73,0.03935127]
[1738949722789,0.93020943,195.82,195.73,0.03935127]
[1738949722989,5.1047,195.81,195.73,5.14605127]
[1738949723785,36.6955753,195.85,195.73,5.14605127]
[1738949723786,1.9011,195.87,195.73,0.03935127]
[1738949723991,5.41042168,195.86,195.74,2.6718]
[1738949724191,4.48,195.86,195.78,0.03549217]
[1738949724493,0.93070178,195.85,195.78,0.03549217]
[1738949725291,5.1051,195.8,195.78,0.03549217]
[1738949725490,4.48,195.86,195.78,0.03549217]
[1738949725693,0.93077222,195.85,195.78,0.03549217]
[1738949725894,5.1052,195.79,195.78,0.03549217]
[1738949726393,5.1065,195.74,195.69,2.6718]
[1738949726595,5.1065,195.74,195.68,1.8015]
[1738949726795,4.48,195.86,195.67,97.35279079]
[1738949726796,36.6955753,195.78,195.67,97.35279079]
[1738949726988,5.1072,195.72,195.67,97.35279079]
[1738949727289,1.8741,195.77,195.63,2.6018]
[1738949727489,4.48,195.74,195.66,0.03486332]
[1738949727700,0.03639323,195.7,195.66,0.03486332]
[1738949727885,5.14389323,195.7,195.66,0.03486332]
[1738949728194,0.03639323,195.7,195.66,0.03486332]
[1738949729398,4.48,195.79,195.67,22.55551595]
[1738949729600,4.48,195.79,195.68,1.7934]
[1738949729796,4.48,195.79,195.7,22.55551595]
[1738949729991,4.48,195.79,195.68,1.7934]
[1738949730696,5.1064,195.75,195.72,0.03359621]
[1738949731091,4.48,195.79,195.72,0.03359621]
[1738949731292,5.1057,195.77,195.72,0.03359621]
[1738949731993,5.1052,195.79,195.72,5.14029621]
[1738949732193,4.48,195.81,195.72,0.03359621]
[1738949732394,8.7927,195.85,195.69,134.00597087]
[1738949732588,4.3127,195.85,195.75,0.03553539]
[1738949734096,5.1045,195.82,195.75,0.03553539]
[1738949735301,40.96588008,195.85,195.75,0.03553539]
[1738949735502,6.04362558,195.84,195.75,0.03553539]
[1738949735697,0.93262558,195.83,195.75,0.03553539]
[1738949735903,5.1046,195.82,195.75,0.03553539]
[1738949736102,40.96588008,195.85,195.75,0.03553539]
[1738949736704,36.65318008,195.79,195.75,0.03553539]
[1738949737204,4.3127,195.85,195.75,0.03553539]
[1738949737205,40.96588008,195.85,195.75,0.03553539]
[1738949737400,0.93247382,195.84,195.75,0.03553539]
[1738949737602,5.111,195.81,195.75,0.03553539]
[1738949737901,0.93205822,195.8,195.75,0.03553539]
[1738949738099,5.106,195.76,195.75,0.03553539]
[1738949738501,36.65318008,195.79,195.65,2.4586]
[1738949738701,5.1065,195.74,195.66,5.1083]
[1738949739605,0.03553539,195.72,195.68,0.03691454]
[1738949741104,5.1078,195.69,195.68,0.03691454]
[1738949741495,36.65318008,195.71,195.57,4.422]
[1738949741696,36.65318008,195.68,195.55,97.35279079]
[1738949741903,36.65318008,195.68,195.5,36.65318008]
[1738949742107,36.65318008,195.71,195.54,36.65318008]
[1738949742301,5.1088,195.66,195.57,5.1108]
[1738949742704,36.65318008,195.71,195.54,36.65318008]
[1738949742705,0.03236625,195.64,195.61,0.03434315]
[1738949743001,5.1096,195.62,195.61,0.03434315]
[1738949743302,5.1096,195.62,195.5,97.35279079]
[1738949743303,5.1107,195.58,195.5,102.46549079]
[1738949743505,5.1107,195.58,195.5,5.1127]
[1738949743806,5.1112,195.56,195.47,11.0323]
[1738949744197,41.13318008,195.62,195.47,5.9188]
[1738949744405,0.03453798,195.53,195.5,0.03409993]
[1738949744707,4.48,195.62,195.48,36.65318008]
[1738949744902,0.03904943,195.53,195.5,0.03265975]
[1738949745109,4.48,195.62,195.57,5.1107]
[1738949745699,4.48,195.62,195.54,36.65318008]
[1738949745905,4.48,195.62,195.58,5.1106]
[1738949746297,4.51782063,195.62,195.58,5.14338799]
[1738949746500,4.51782063,195.62,195.58,0.03278799]
[1738949747898,83.24481528,195.68,195.6,36.65318008]
[1738949748206,83.24481528,195.76,195.63,36.65318008]
[1738949748505,83.24481528,195.76,195.66,36.65318008]
[1738949748707,88.35081528,195.76,195.69,5.1078]
[1738949748908,83.24481528,195.76,195.69,5.1078]
[1738949749108,0.02992302,195.74,195.71,0.03846294]
[1738949750008,0.02992302,195.74,195.72,5.107]
[1738949750401,0.02992302,195.74,195.71,0.03846294]
[1738949750807,6.3812,195.85,195.71,2.69506294]
[1738949751002,6.3812,195.85,195.71,2.6566]
[1738949751210,5.1047,195.81,195.73,5.1067]
[1738949751510,6.3812,195.85,195.71,2.6566]
[1738949751815,5.1041,195.84,195.76,5.1059]
[1738949752108,5.1042,195.83,195.76,0.03446035]
[1738949752305,1.9012,195.85,195.76,0.03446035]
[1738949752507,0.92964093,195.84,195.76,0.03446035]
[1738949752811,5.1041,195.84,195.76,0.03446035]
[1738949753704,5.1041,195.83,195.76,0.03446035]
[1738949753902,1.9012,195.85,195.76,0.03446035]
[1738949754205,0.92942473,195.84,195.76,0.03446035]
[1738949754807,0.92942473,195.84,195.69,22.54483582]
[1738949755005,22.54483582,195.77,195.57,2.4724]
[1738949755412,5.1063,195.75,195.57,2.4724]
[1738949755604,22.54483582,195.81,195.57,2.4724]
[1738949755802,22.54483582,195.77,195.57,2.4724]
[1738949756011,5.1078,195.69,195.57,2.4724]
[1738949756213,0.03446035,195.72,195.57,2.4724]
[1738949756507,0.03446035,195.68,195.67,0.03457115]
[1738949756712,4.48,195.74,195.67,0.03457115]
[1738949756912,0.03446035,195.69,195.67,0.03457115]
[1738949757313,5.14226035,195.69,195.67,0.03457115]
[1738949757510,0.03446035,195.69,195.67,0.03457115]
[1738949757911,5.108,195.68,195.67,0.03457115]
[1738949758115,0.03446035,195.69,195.67,0.03457115]
[1738949760715,5.108,195.68,195.67,0.03457115]
[1738949761217,0.03446035,195.69,195.67,0.03457115]
[1738949761417,0.03446035,195.69,195.6,97.35279079]
[1738949762015,0.03446035,195.69,195.64,5.109]
[1738949762211,0.03446035,195.69,195.6,97.35279079]
[1738949762414,4.48,195.8,195.66,36.65919454]
[1738949762612,36.65919454,195.83,195.66,36.65919454]
[1738949762816,5.40868057,195.82,195.7,36.65919454]
[1738949763018,83.24481528,195.85,195.73,36.65919454]
[1738949763208,0.92909315,195.84,195.76,5.1057]
[1738949763415,10.77526911,195.86,195.76,5.1057]
[1738949763718,0.03457115,195.82,195.78,0.03751806]
[1738949766515,5.1047,195.81,195.78,0.03751806]
[1738949766719,0.03457115,195.82,195.78,0.03751806]
[1738949768029,0.03457115,195.82,195.68,5.1078]
[1738949768226,36.65919454,195.79,195.67,4.3436]
[1738949768528,5.1064,195.75,195.67,4.3436]
[1738949768723,36.65919454,195.79,195.67,4.3436]
[1738949768927,5.1057,195.77,195.69,5.1076]
[1738949769123,0.03587502,195.75,195.71,0.0366445]
[1738949769527,0.03587502,195.75,195.73,5.1067]
[1738949769829,0.03587502,195.75,195.71,0.0366445]
[1738949770821,0.03587502,195.75,195.72,5.1068]
[1738949771025,0.03587502,195.75,195.71,0.0366445]
[1738949771326,0.03587502,195.75,195.72,5.1068]
[1738949771626,0.03587502,195.75,195.71,0.0366445]
[1738949771827,0.03587502,195.75,195.73,5.1067]
[1738949772323,0.03587502,195.75,195.71,0.0366445]
[1738949772524,1.8281,195.86,195.73,36.65919454]
[1738949773229,1.8281,195.86,195.7,36.65919454]
[1738949773526,36.65919454,195.84,195.68,1.8635]
[1738949773718,0.03621419,195.8,195.76,0.03906852]
[1738949776324,5.1057,195.77,195.76,0.03906852]
[1738949776628,0.03621419,195.8,195.67,4.3436]
[1738949776830,5.1062,195.76,195.69,5.1076]
[1738949777125,5.21520882,195.82,195.67,4.3436]
[1738949777126,4.2865,195.82,195.67,4.3436]
[1738949777823,0.03721275,195.76,195.73,0.03259274]
[1738949778230,5.1064,195.75,195.73,0.03259274]
[1738949778430,0.03721275,195.76,195.73,0.03259274]
[1738949778934,5.1065,195.74,195.73,0.03259274]
[1738949779634,0.03721275,195.76,195.73,0.03259274]
[1738949780034,0.03721275,195.76,195.66,97.35279079]
[1738949780331,4.48,195.75,195.62,1.802]
[1738949780535,5.1073,195.71,195.63,5.1091]
[1738949780927,5.1069,195.73,195.62,1.802]
[1738949781432,0.03397776,195.69,195.66,0.03443459]
[1738949784728,0.03397776,195.69,195.68,5.1081]
[1738949784928,0.03397776,195.69,195.66,0.03443459]
[1738949785734,5.1081,195.68,195.66,0.03443459]
[1738949786134,0.03397776,195.69,195.66,0.03443459]
[1738949786333,5.1081,195.68,195.66,0.03443459]
[1738949786537,0.03397776,195.69,195.66,0.03443459]
[1738949786937,5.1092,195.64,195.59,2.6728]
[1738949787132,22.56157587,195.7,195.56,5.1109]
[1738949787532,22.56157587,195.7,195.53,123.50306666]
[1738949787737,2.6556,195.72,195.57,22.56157587]
[1738949787937,2.6556,195.72,195.6,22.56157587]
[1738949788138,22.56157587,195.77,195.6,22.59904752]
[1738949788338,15.33,195.84,195.6,22.59904752]
[1738949788339,5.40685241,195.76,195.63,22.56157587]
[1738949788539,5.1063,195.75,195.63,22.56157587]
[1738949788839,5.1063,195.75,195.67,5.1081]
[1738949789036,4.48,195.78,195.67,5.1081]
[1738949789345,4.48,195.78,195.71,0.03755967]
[1738949789346,0.03587182,195.74,195.71,0.03755967]
[1738949790040,0.03587182,195.74,195.71,5.14465967]
[1738949790442,0.03587182,195.74,195.71,0.03755967]
[1738949790638,4.48,195.83,195.71,0.03755967]
[1738949790835,4.54,195.86,195.71,0.03755967]
[1738949791039,5.1036,195.85,195.78,5.1054]
[1738949791240,5.1036,195.85,195.74,22.56157587]
[1738949791439,83.24481528,195.81,195.75,2.4327]
[1738949791640,80.37241528,195.81,195.8,5.1049]
[1738949792043,80.37241528,195.81,195.78,22.56157587]
[1738949792545,80.37241528,195.81,195.78,27.66677587]
[1738949792743,80.37241528,195.81,195.78,22.56157587]
[1738949793545,76.35221528,195.81,195.78,22.56157587]
[1738949794045,76.35221528,195.81,195.8,5.1049]
[1738949794343,70.87291528,195.81,195.8,5.1049]
[1738949794540,5.1026,195.9,195.79,22.56157587]
[1738949794938,5.1028,195.89,195.82,5.1044]
[1738949795144,4.46,195.95,195.82,5.1044]
[1738949795348,4.46,195.95,195.79,22.56157587]
[1738949795644,0.92819877,195.91,195.76,1.8061]
[1738949795941,0.03478611,195.87,195.84,5.31e-06]
[1738949798044,0.03478611,195.87,195.86,5.1034]
[1738949799247,0.03478611,195.87,195.84,5.31e-06]
[1738949800345,8.611e-05,195.87,195.86,5.1034]
[1738949800543,1.7988,196.07,195.86,22.56157587]
[1738949800848,6.02822363,196.06,195.96,5.1005]
[1738949801051,1.7988,196.07,195.97,22.56157587]
[1738949801643,0.03188158,196.04,196.0,0.03448153]
[1738949802042,134.76985648,196.13,196.01,22.56157587]
[1738949802249,5.097,196.11,196.04,5.0986]
[1738949802446,134.76985648,196.13,196.01,22.56157587]
[1738949802842,134.76985648,196.13,195.98,25.08177587]
[1738949803247,134.76985648,196.13,196.04,0.0332818]
[1738949803547,0.93072507,196.12,196.04,0.0332818]
[1738949803750,5.0977,196.08,196.04,0.0332818]
[1738949803946,22.56157587,196.11,196.04,0.0332818]
[1738949804146,22.56157587,196.08,195.91,2.1233]
[1738949804351,5.0987,196.04,195.91,2.1233]
[1738949805148,5.0989,196.03,195.91,2.1233]
[1738949805349,0.0332818,195.99,195.96,0.03862489]
[1738949806249,5.1003,195.98,195.96,0.03862489]
[1738949806449,0.0332818,195.99,195.96,0.03862489]
[1738949806850,5.1333818,195.99,195.96,0.03862489]
[1738949807046,0.0332818,195.99,195.96,0.03862489]
[1738949808551,22.56157587,196.14,195.98,22.56157587]
[1738949808746,5.0971,196.11,196.02,5.0991]
[1738949809053,0.93133735,196.1,195.98,22.56157587]
[1738949809249,1.6496,196.12,195.98,22.56157587]
[1738949809551,0.93171969,196.11,195.98,22.56157587]
[1738949809751,0.93171969,196.11,196.03,0.03515087]
[1738949809951,1.6496,196.12,196.03,0.03515087]
[1738949811056,5.0977,196.08,196.03,0.03515087]
[1738949811346,1.6496,196.12,196.03,0.03515087]
[1738949811754,5.0971,196.1,196.03,0.03515087]
[1738949812248,1.6496,196.12,196.03,0.03515087]
[1738949812453,5.0975,196.09,196.03,0.03515087]
[1738949812855,1.6496,196.12,196.03,0.03515087]
[1738949813855,0.93127387,196.11,196.03,0.03515087]
[1738949814847,5.0982,196.07,196.03,0.03515087]
[1738949815659,1.6496,196.12,196.03,0.03515087]
[1738949815856,5.0982,196.06,196.03,0.03515087]
[1738949817657,1.6496,196.12,196.03,0.03515087]
[1738949818357,5.0987,196.04,196.03,0.03515087]
[1738949818658,22.56157587,196.11,195.94,22.56157587]
[1738949818857,1.6496,196.12,195.91,122.03766666]
[1738949818858,22.56157587,196.08,195.91,122.03766666]
[1738949819058,4.68318512,196.07,195.91,122.03766666]
[1738949819257,0.93168512,196.06,195.93,5.1015]
[1738949819457,0.93168512,196.06,195.91,122.03766666]
[1738949819852,0.03515087,196.01,195.98,0.03578336]
[1738949820357,4.49515087,196.01,195.85,24.13657587]
[1738949820555,4.46,196.01,195.85,24.13657587]
[1738949821349,4.46,196.01,195.88,22.56157587]
[1738949821558,0.03416454,195.95,195.91,0.03376174]
[1738949822059,0.03416454,195.95,195.94,5.1011]
[1738949822357,0.93273979,196.06,195.91,22.59533761]
[1738949822559,5.1001,195.99,195.93,5.1015]
[1738949822758,3.7515,196.07,195.91,22.56157587]
[1738949822956,22.56157587,196.05,195.91,22.56157587]
[1738949823157,0.93295015,196.04,195.88,22.56157587]
[1738949823360,0.03676969,196.0,195.96,0.03579377]
[1738949823661,5.13646969,196.0,195.96,0.03579377]
[1738949824060,0.03676969,196.0,195.96,0.03579377]
[1738949824963,0.03676969,196.0,195.9,5.1021]
[1738949825159,0.9331178,196.06,195.9,5.1021]
[1738949825459,22.56157587,196.03,195.85,1.575]
[1738949825667,0.9331178,196.02,195.85,1.575]
[1738949825866,0.9331178,196.02,195.87,22.56157587]
[1738949826068,5.0995,196.01,195.87,22.56157587]
[1738949826368,3.7515,196.07,195.95,5.1009]
[1738949826369,0.03701596,195.96,195.95,5.1009]
[1738949826660,0.03701596,195.96,195.93,0.03609614]
[1738949826661,3.7515,196.07,195.98,5.1001]
[1738949826868,0.03881437,195.97,195.94,0.03266125]
[1738949827067,3.7515,196.07,195.93,22.56157587]
[1738949827269,3.7515,196.07,195.98,5.1]
[1738949827464,0.0332878,196.02,195.98,5.1]
[1738949827767,0.0332878,196.02,196.01,0.03465942]
[1738949828563,0.0332878,196.02,196.01,5.13415942]
[1738949828970,5.0971,196.11,196.01,0.03465942]
[1738949829171,5.0971,196.1,196.05,5.0984]
[1738949829367,5.0971,196.1,196.01,0.03465942]
[1738949829562,1.6021,196.13,196.02,22.56157587]
[1738949829963,1.6021,196.13,195.99,119.91436666]
[1738949830165,0.03282174,196.09,196.06,0.03482719]
[1738949830373,0.03282174,196.09,196.06,5.13292719]
[1738949831571,0.03282174,196.09,196.08,5.0976]
[1738949831768,0.03282174,196.09,196.06,0.03482719]
[1738949832071,5.0978,196.08,196.06,0.03482719]
[1738949832267,0.03282174,196.09,196.06,0.03482719]
[1738949832667,0.03282174,196.09,196.06,5.13292719]
[1738949832866,0.03282174,196.09,196.06,0.03482719]
[1738949833870,0.03282174,196.09,196.06,5.13282719]
[1738949834468,0.03282174,196.09,196.08,5.0976]
[1738949834670,5.0956,196.16,196.06,22.59640306]
[1738949835267,22.56157587,196.24,196.06,22.59640306]
[1738949835473,5.0952,196.18,196.13,5.0962]
[1738949835674,22.56157587,196.2,196.06,97.35279079]
[1738949835870,22.56157587,196.16,196.14,9.805e-05]
[1738949836071,5.229,196.15,196.01,2.1822]
[1738949837177,0.0368858,196.1,196.06,0.03273253]
[1738949837973,0.0368858,196.1,196.06,5.13083253]
[1738949838575,0.0368858,196.1,196.06,0.03273253]
[1738949839177,5.0977,196.08,196.06,0.03273253]
[1738949839572,0.0368858,196.1,196.06,0.03273253]
[1738949839772,5.0979,196.07,196.0,5.0995]
[1738949839975,22.56157587,196.12,195.95,8.60263029]
[1738949840177,0.93205926,196.11,195.96,22.56157587]
[1738949840372,10.02179109,196.11,195.96,22.56157587]
[1738949840574,10.02179109,196.11,195.95,8.60263029]
[1738949840575,9.08973183,196.11,195.95,8.60263029]
[1738949840774,9.08973183,196.11,195.94,97.35279079]
[1738949840975,4.46,196.14,196.01,0.03636766]
[1738949840976,5.0992,196.03,196.01,0.03636766]
[1738949841180,0.03376595,196.05,195.96,5.1005]
[1738949841380,5.0992,196.03,195.95,5.101]
[1738949841780,22.56157587,196.05,195.92,7.05673029]
[1738949842083,5.1004,195.98,195.92,7.05673029]
[1738949842480,3.6093,196.04,195.93,0.03603841]
[1738949842481,0.03582612,195.97,195.93,0.03603841]
[1738949842783,0.03582612,195.97,195.91,21.22981121]
[1738949843183,5.1025,195.9,195.85,33.94702248]
[1738949843480,22.56157587,195.95,195.85,33.94702248]
[1738949843781,22.56157587,195.91,195.85,33.94702248]
[1738949844080,5.1026,195.89,195.88,0.03563911]
[1738949844381,4.46,195.9,195.85,33.94702248]
[1738949844986,4.46,195.9,195.77,22.56157587]
[1738949845184,5.1029,195.88,195.79,5.1052]
[1738949845386,5.1029,195.88,195.82,0.03782795]
[1738949845578,0.0360354,195.85,195.82,0.03782795]
[1738949845778,5.1397354,195.85,195.82,0.03782795]
[1738949845986,0.0360354,195.85,195.82,0.03782795]
[1738949846384,0.0360354,195.85,195.71,24.77757587]
[1738949846582,5.1041,195.83,195.74,5.1064]
[1738949846887,4.46,195.9,195.74,22.56157587]
[1738949847792,0.03470382,195.84,195.8,0.03676974]
[1738949847990,5.1042,195.83,195.8,0.03676974]
[1738949848390,0.03470382,195.84,195.8,0.03676974]
[1738949848585,5.13870382,195.84,195.8,0.03676974]
[1738949848786,0.03470382,195.84,195.8,0.03676974]
[1738949849287,5.13860382,195.84,195.8,0.03676974]
[1738949849488,0.03470382,195.84,195.8,0.03676974]
[1738949850590,0.03470382,195.84,195.71,2.216]
[1738949850788,22.56157587,195.82,195.67,22.56157587]
[1738949850987,5.1063,195.75,195.67,5.1083]
[1738949851187,4.46,195.78,195.66,1.5426]
[1738949851883,4.46,195.78,195.64,22.56157587]
[1738949851884,0.03242981,195.74,195.7,0.03924118]
[1738949855085,0.03242981,195.74,195.7,1.61664118]
[1738949855286,0.03242981,195.74,195.72,5.1069]
[1738949855588,4.46,195.82,195.7,3.27024118]
[1738949855790,5.1052,195.8,195.73,5.1065]
[1738949855990,4.46,195.82,195.71,2.2103]
[1738949856190,22.56157587,195.81,195.7,3.231]
[1738949856581,4.46,195.82,195.7,3.231]
[1738949856787,0.03689656,195.77,195.74,0.03759073]